bitfinex-derivatives/quotes_SOLF0:USTF0_20240912
["timestamp","ask_amount","ask_price","bid_price","bid_amount"]
[1726152580433,3.3357,134.91,134.86,3.68737029]
[1726152580633,3.3357,134.91,134.85,5.92426966]
[1726152580824,3.3357,134.91,134.86,3.70293507]
[1726152581439,3.3355,134.92,134.86,7.03973507]
[1726152582728,28.47,134.95,134.86,7.03973507]
[1726152582729,3.3353,134.93,134.87,3.3367]
[1726152583222,3.3351,134.94,134.88,3.3363]
[1726152583426,28.47,134.95,134.88,3.3363]
[1726152583825,3.335,134.94,134.88,3.3363]
[1726152584136,3.9281,134.98,134.88,3.69911766]
[1726152584348,3.3344,134.97,134.89,1.3336]
[1726152584639,3.9281,134.98,134.89,1.3336]
[1726152584833,3.9281,134.98,134.89,7.26240682]
[1726152585023,3.9281,134.98,134.92,3.3353]
[1726152585439,4.6463,134.98,134.9,5.92880682]
[1726152585740,1.3122,134.98,134.9,5.92880682]
[1726152586031,3.3346,134.96,134.89,8.61490682]
[1726152586234,3.3346,134.96,134.9,3.3358]
[1726152586792,3.3346,134.96,134.91,3.3356]
[1726152587033,3.3343,134.97,134.91,3.3356]
[1726152587234,3.3343,134.97,134.91,3.3355]
[1726152587636,3.3343,134.97,134.89,8.60950608]
[1726152587830,1.3122,134.98,134.92,3.3352]
[1726152588032,1.3122,134.98,134.9,5.92340608]
[1726152588033,2.7282,135.02,134.9,34.39340608]
[1726152588337,17.79,135.01,134.92,17.79]
[1726152588527,3.3335,135.0,134.94,3.3348]
[1726152589237,21.1233,135.01,134.93,5.92158854]
[1726152589736,17.79,135.01,134.93,5.92158854]
[1726152589933,17.79,135.01,134.92,17.79]
[1726152590143,32.565,135.02,134.93,5.91968035]
[1726152590548,32.565,135.02,134.93,3.3351]
[1726152590958,3.3335,135.0,134.92,5.91968035]
[1726152591132,32.565,135.02,134.93,5.91968035]
[1726152591335,32.565,135.02,134.92,5.91968035]
[1726152591529,32.565,135.02,134.93,5.91968035]
[1726152591734,253.94825435,135.06,134.94,5.91968035]
[1726152591735,231.77825435,135.06,134.94,5.91968035]
[1726152591931,1.419,135.05,134.95,5.91968035]
[1726152592237,1.419,135.05,134.95,2.7452]
[1726152592554,28.46,135.04,134.96,5.91252071]
[1726152592738,28.46,135.04,134.94,3.3347]
[1726152592942,28.46,135.04,134.95,5.91252071]
[1726152593136,28.46,135.04,134.9,28.46]
[1726152593337,28.46,135.04,134.93,28.46]
[1726152593543,1.419,135.05,134.93,28.46]
[1726152593730,3.3325,135.04,134.98,3.3337]
[1726152593941,1.419,135.05,134.98,3.65431641]
[1726152594141,1.419,135.05,134.96,5.91087562]
[1726152594343,4.7513,135.05,134.99,3.3335]
[1726152594738,4.7513,135.05,134.99,9.24316026]
[1726152594936,4.7513,135.05,134.99,3.3335]
[1726152595446,4.7513,135.05,134.96,4.91523108]
[1726152595447,3.3325,135.04,134.96,4.91523108]
[1726152595642,3.3325,135.04,134.97,5.91062746]
[1726152595839,3.3325,135.04,134.98,9.24442746]
[1726152596040,3.3325,135.04,134.98,3.3338]
[1726152596447,1.419,135.05,134.97,3.3341]
[1726152596448,3.3327,135.03,134.97,3.3341]
[1726152596750,1.419,135.05,134.96,4.91523108]
[1726152597250,3.333,135.02,134.96,8.24953108]
[1726152597665,3.3334,135.01,134.95,6.0799]
[1726152598150,3.3334,135.01,134.95,9.77915877]
[1726152598350,28.46,135.04,134.95,9.77915877]
[1726152598757,3.3334,135.01,134.95,9.77915877]
[1726152599155,3.3334,135.01,134.96,3.3344]
[1726152600749,28.46,135.02,134.92,3.72000159]
[1726152601056,28.46,135.02,134.93,5.91438924]
[1726152601380,1.419,135.05,134.94,5.91438924]
[1726152601558,28.46,135.03,134.95,5.91438924]
[1726152601754,3.3336,135.0,134.94,6.97921315]
[1726152602055,28.46,135.03,134.94,3.64441315]
[1726152602248,3.3334,135.01,134.96,3.3344]
[1726152602583,1.419,135.05,134.95,34.3761094]
[1726152602852,3.3329,135.03,134.98,3.3338]
[1726152603083,1.419,135.05,134.97,5.91202174]
[1726152603251,1.419,135.05,134.95,2.6094]
[1726152603455,1.419,135.05,134.96,5.91107818]
[1726152603651,28.46,135.02,134.91,28.46]
[1726152603855,3.3338,134.99,134.93,3.335]
[1726152604063,28.46,135.0,134.89,28.46]
[1726152604354,2.6474,134.99,134.9,5.91520743]
[1726152604545,5.9813,134.99,134.91,5.91520743]
[1726152604741,5.9813,134.99,134.92,5.91520743]
[1726152604940,5.9813,134.99,134.93,5.91520743]
[1726152605156,5.9813,134.99,134.91,3.67543534]
[1726152605354,2.6474,134.99,134.89,28.46]
[1726152605549,2.6474,134.99,134.9,5.91436024]
[1726152605755,2.6474,134.99,134.91,9.62943989]
[1726152605949,2.6474,134.99,134.92,5.91436024]
[1726152606158,31.1074,134.99,134.93,5.91436024]
[1726152606364,34.72688869,134.99,134.9,9.25104004]
[1726152606558,28.46,134.95,134.91,5.91524004]
[1726152606855,28.46,134.95,134.88,5.91524004]
[1726152607050,28.46,134.95,134.89,5.91524004]
[1726152607262,28.46,134.95,134.86,5.91524004]
[1726152607566,28.46,134.97,134.87,5.91524004]
[1726152607754,28.46,134.97,134.88,5.91524004]
[1726152608055,3.3349,134.95,134.89,9.25134004]
[1726152608358,1.3357,134.98,134.9,5.91524004]
[1726152608568,1.3357,134.98,134.91,5.91630022]
[1726152608752,1.3357,134.98,134.89,5.91630022]
[1726152608952,1.3357,134.98,134.9,5.91630022]
[1726152609155,1.3357,134.98,134.88,2.8152]
[1726152609346,1.3357,134.98,134.89,34.37231853]
[1726152609547,1.3357,134.98,134.9,5.91231853]
[1726152609856,3.3344,134.96,134.91,5.91231853]
[1726152610071,1.3357,134.98,134.88,2.8152]
[1726152610272,1.3357,134.98,134.89,5.91312919]
[1726152610613,1.3357,134.98,134.9,5.91312919]
[1726152610772,28.46,134.97,134.88,1.4171]
[1726152610956,28.46,134.97,134.89,5.91562547]
[1726152611151,28.46,134.97,134.85,29.8014]
[1726152611360,28.46,134.97,134.87,28.46]
[1726152611568,1.3357,134.98,134.87,28.46]
[1726152611753,1.3357,134.98,134.9,5.91496713]
[1726152612362,3.3348,134.95,134.9,5.91496713]
[1726152612552,17.8,134.97,134.89,17.8]
[1726152612765,1.3357,134.98,134.9,5.91323412]
[1726152613053,1.3357,134.98,134.91,5.91323412]
[1726152613257,1.3357,134.98,134.89,17.8]
[1726152613577,4.6697,134.98,134.92,3.3353]
[1726152614049,4.6697,134.98,134.93,3.3352]
[1726152614357,1.3357,134.98,134.92,5.91066979]
[1726152614561,1.3357,134.98,134.9,5.9781]
[1726152614756,1.3357,134.98,134.91,5.91317369]
[1726152614958,3.3343,134.97,134.92,5.91317369]
[1726152615151,1.3357,134.98,134.91,5.91317369]
[1726152615366,1.3357,134.98,134.92,9.7011315]
[1726152615552,1.3357,134.98,134.92,3.78854135]
[1726152615760,4.6697,134.98,134.93,5.91193512]
[1726152615961,4.6697,134.98,134.92,3.79187666]
[1726152616162,1.3357,134.98,134.93,5.91169748]
[1726152616462,2.6474,134.99,134.92,3.75111176]
[1726152616659,465.0,135.05,134.91,17.8]
[1726152616660,1.2916,135.04,134.93,23.71075034]
[1726152616914,3.9878,135.04,134.97,17.8]
[1726152617056,1.2916,135.11,134.98,5.91075034]
[1726152617255,17.8,135.09,135.0,3.3334]
[1726152617451,17.8,135.07,135.0,5.90170381]
[1726152617717,17.8,135.07,134.99,5.90188829]
[1726152617853,17.8,135.07,134.98,4.0641]
[1726152617854,21.1319,135.07,135.01,3.333]
[1726152618047,3.3319,135.07,135.01,9.23488829]
[1726152618254,28.43,135.1,134.98,32.4941]
[1726152618581,3.9878,135.11,135.0,28.43]
[1726152618871,3.9878,135.11,135.01,5.89988198]
[1726152619061,28.43,135.1,135.02,5.89988198]
[1726152619264,28.43,135.1,134.99,5.89988198]
[1726152619463,28.43,135.1,135.0,5.89988198]
[1726152619665,28.43,135.1,134.99,5.89988198]
[1726152619960,28.43,135.1,135.0,5.89988198]
[1726152620354,28.43,135.1,135.01,5.89988198]
[1726152620554,3.3316,135.08,135.01,3.3331]
[1726152621062,3.3316,135.08,135.02,3.3329]
[1726152621264,3.3313,135.09,135.02,3.3329]
[1726152621460,3.9878,135.11,135.0,28.43]
[1726152621656,3.9878,135.11,135.03,3.3326]
[1726152621862,3.3314,135.09,135.03,3.3326]
[1726152622068,3.9878,135.11,135.01,5.89591882]
[1726152622360,3.3312,135.1,135.01,5.89591882]
[1726152622609,3.9878,135.11,135.01,5.89591882]
[1726152622762,3.9878,135.11,135.03,3.3326]
[1726152622953,3.3314,135.09,135.03,3.3326]
[1726152623163,3.9878,135.11,135.01,5.89591882]
[1726152623538,1.3067,135.11,135.05,3.3322]
[1726152623660,28.43,135.15,135.04,1.3954]
[1726152623865,28.43,135.15,135.05,3.74861621]
[1726152624074,3.3307,135.12,135.04,32.53]
[1726152624588,28.43,135.13,135.04,4.1]
[1726152625574,3.3308,135.11,135.05,3.3322]
[1726152625779,3.3308,135.11,135.05,7.05267567]
[1726152626172,3.3308,135.11,135.05,3.72047567]
[1726152626427,3.3308,135.11,135.04,4.1]
[1726152626683,3.3308,135.11,135.05,3.3321]
[1726152626976,3.3308,135.11,135.05,6.9693658]
[1726152627581,3.3305,135.12,135.06,3.332]
[1726152628274,32.5206,135.17,135.05,32.0672658]
[1726152628464,32.5206,135.17,135.05,28.43]
[1726152628972,3.3304,135.13,135.05,32.20166396]
[1726152629277,3.3301,135.14,135.08,3.3313]
[1726152629460,4.0906,135.17,135.07,28.43]
[1726152630063,4.0906,135.17,135.09,3.3311]
[1726152630265,4.0906,135.17,135.07,28.43]
[1726152630266,32.5206,135.17,135.07,28.43]
[1726152630715,3.33,135.14,135.08,3.3313]
[1726152630995,4.0906,135.17,135.07,28.43]
[1726152631392,2.6634,135.17,135.07,28.43]
[1726152631577,1.2894,135.17,135.09,28.43]
[1726152631894,1.2894,135.17,135.1,1.3759]
[1726152632188,3.3295,135.16,135.11,3.3307]
[1726152632580,2.72,135.21,135.11,3.3307]
[1726152632581,31.15,135.21,135.11,3.3307]
[1726152632774,32.464,135.21,135.11,3.3307]
[1726152632973,3.3294,135.17,135.11,3.3307]
[1726152633177,4.034,135.21,135.14,28.43]
[1726152633375,4.034,135.21,135.12,28.43]
[1726152633587,3.3291,135.18,135.1,4.0768]
[1726152633877,3.3291,135.18,135.11,3.3306]
[1726152634078,3.3295,135.16,135.1,4.0768]
[1726152634394,28.43,135.2,135.1,4.0768]
[1726152635673,28.43,135.2,135.1,1.3759]
[1726152635933,28.43,135.16,135.06,2.6125]
[1726152636083,2.6674,135.15,135.06,2.6125]
[1726152636806,29.7311,135.14,135.03,1.3264]
[1726152636989,29.7311,135.14,135.03,4.6591]
[1726152637177,28.43,135.12,135.03,4.6591]
[1726152637376,28.43,135.12,135.03,1.3264]
[1726152637818,28.43,135.12,135.02,6.0869]
[1726152638170,3.3314,135.09,135.02,6.0869]
[1726152638453,28.43,135.12,135.02,2.754]
[1726152638973,28.43,135.12,134.98,1.3156]
[1726152638974,28.43,135.09,134.98,29.7456]
[1726152639178,51.9011,135.14,134.98,29.7456]
[1726152639179,28.43,135.07,134.98,29.7456]
[1726152639398,28.43,135.05,134.94,2.7155]
[1726152639616,28.43,135.05,134.95,3.3345]
[1726152639778,28.43,135.05,134.94,4.0311]
[1726152639996,28.43,135.05,134.94,7.78712329]
[1726152640178,3.3328,135.03,134.96,3.3343]
[1726152640568,28.43,135.05,134.94,7.78712329]
[1726152641177,3.3331,135.02,134.95,3.3346]
[1726152643485,3.3327,135.03,134.94,7.78712329]
[1726152644077,3.3327,135.03,134.97,3.3342]
[1726152644880,28.43,135.05,134.97,3.3342]
[1726152645488,3.3325,135.04,134.96,28.43]
[1726152645695,28.43,135.07,134.96,28.43]
[1726152645989,28.43,135.07,134.98,28.43]
[1726152646181,28.43,135.07,134.99,3.3335]
[1726152646481,28.43,135.07,134.98,28.43]
[1726152647076,28.43,135.07,134.94,7.78712329]
[1726152647285,28.43,135.07,134.96,28.43]
[1726152647688,3.332,135.06,135.0,3.3334]
[1726152647903,28.43,135.07,134.96,28.43]
[1726152648072,3.3324,135.05,134.97,17.78]
[1726152648678,3.3322,135.05,134.97,17.78]
[1726152648890,17.78,135.07,134.97,17.78]
[1726152649290,17.78,135.07,134.99,3.3335]
[1726152649485,4.0667,135.08,134.99,17.78]
[1726152649689,2.7344,135.08,135.0,20.5419]
[1726152649888,3.332,135.06,135.0,20.5419]
[1726152650189,2.7344,135.08,135.01,3.75333333]
[1726152650406,2.7344,135.08,135.0,20.5419]
[1726152650407,6.066,135.08,135.02,3.3329]
[1726152650619,2.7344,135.08,135.01,3.65888888]
[1726152650987,6.0659,135.08,135.01,3.65888888]
[1726152651200,17.78,135.12,135.02,17.78]
[1726152651395,3.3308,135.11,135.05,3.3321]
[1726152651577,1.3733,135.13,135.04,17.78]
[1726152652180,29.7933,135.13,135.02,5.06019629]
[1726152652385,28.42,135.11,135.0,6.0952]
[1726152652888,28.42,135.11,135.0,2.7619]
[1726152653399,3.3315,135.08,135.01,3.64578705]
[1726152653780,3.3318,135.07,135.01,3.64578705]
[1726152653996,28.42,135.11,135.0,1.3834]
[1726152654283,28.42,135.11,135.0,4.7167]
[1726152654492,28.42,135.11,135.01,3.73537686]
[1726152654685,29.7933,135.13,135.01,3.73537686]
[1726152654891,3.3317,135.07,135.01,7.06847686]
[1726152655190,3.3317,135.07,135.01,3.3331]
[1726152655901,32.04579594,135.09,135.0,1.3834]
[1726152656083,2.7951,135.08,135.0,1.3834]
[1726152656589,2.7951,135.08,134.99,28.42]
[1726152656792,1.2976,135.07,134.99,28.42]
[1726152657491,4.6294,135.07,135.0,3.3332]
[1726152657986,4.6294,135.07,134.99,28.42]
[1726152658192,4.6294,135.07,135.01,3.3332]
[1726152659285,3.332,135.06,134.99,28.42]
[1726152659491,1.2976,135.07,134.99,28.42]
[1726152660479,3.3321,135.06,135.0,3.3333]
[1726152660885,1.2976,135.07,135.0,3.3333]
[1726152661091,3.3321,135.06,135.0,3.3333]
[1726152661600,28.42,135.06,134.96,2.8144]
[1726152662098,3.3326,135.04,134.96,31.2344]
[1726152662642,3.3326,135.04,134.98,3.3339]
[1726152663189,28.42,135.06,134.97,3.3341]
[1726152663693,28.42,135.06,134.96,31.2344]
[1726152663893,28.42,135.06,134.98,3.3339]
[1726152664795,3.3326,135.04,134.98,3.3339]
[1726152664993,3.3326,135.04,134.99,3.3337]
[1726152665294,28.42,135.06,134.96,31.2344]
[1726152665495,1.2976,135.07,134.98,28.42]
[1726152665790,28.42,135.13,135.01,28.42]
[1726152665994,3.9729,135.12,135.01,32.10481481]
[1726152666392,28.42,135.1,135.01,32.10481481]
[1726152667191,28.42,135.1,135.01,3.68481481]
[1726152667388,28.42,135.08,134.96,2.8144]
[1726152667594,28.42,135.06,134.96,2.8144]
[1726152667790,28.42,135.06,134.97,3.334]
[1726152667993,28.42,135.06,134.96,2.8144]
[1726152668302,3.3331,135.02,134.96,6.1487]
[1726152668491,4.0558,135.05,134.96,6.1487]
[1726152668817,28.42,135.04,134.94,3.75602329]
[1726152668982,28.42,135.02,134.92,140.69128684]
[1726152669185,28.42,135.0,134.91,3.75546336]
[1726152669420,1.3472,134.99,134.88,28.42]
[1726152669720,28.42,134.98,134.87,4.0292]
[1726152670009,31.1062,134.98,134.87,4.0292]
[1726152670200,3.3349,134.95,134.88,3.73323949]
[1726152670387,28.42,134.95,134.87,4.0292]
[1726152670992,28.42,134.95,134.87,7.64168981]
[1726152671892,31.7547,134.95,134.87,7.64168981]
[1726152672102,28.42,134.95,134.87,7.64168981]
[1726152672395,3.3345,134.96,134.88,3.3362]
[1726152672611,28.42,134.97,134.87,7.64168981]
[1726152672982,31.7544,134.97,134.87,7.64168981]
[1726152673298,2.6862,134.98,134.88,28.42]
[1726152673890,3.3344,134.97,134.89,3.3361]
[1726152674199,2.6862,134.98,134.88,28.42]
[1726152674396,3.3342,134.97,134.9,3.3359]
[1726152674646,2.6862,134.98,134.88,28.42]
[1726152675708,3.3346,134.96,134.89,3.3361]
[1726152676002,2.6862,134.98,134.88,28.42]
[1726152676212,6.0202,134.98,134.91,3.3357]
[1726152676497,2.6862,134.98,134.88,28.42]
[1726152676699,3.3344,134.97,134.9,3.3359]
[1726152676993,2.6862,134.98,134.88,28.42]
[1726152677399,3.3344,134.97,134.9,3.3359]
[1726152677600,2.6862,134.98,134.88,28.42]
[1726152678105,2.6862,134.98,134.89,3.336]
[1726152678398,2.6862,134.98,134.9,3.3357]
[1726152679095,2.6862,134.98,134.91,3.3356]
[1726152679507,1.3962,134.98,134.9,28.42]
[1726152679695,1.3472,134.99,134.93,3.3352]
[1726152680401,4.6811,134.99,134.92,3.3353]
[1726152681613,28.42,135.03,134.92,28.42]
[1726152681901,28.42,135.03,134.93,1.3171]
[1726152682100,29.7679,135.05,134.95,28.42]
[1726152682404,29.7679,135.05,134.96,3.66468655]
[1726152682601,4.6804,135.05,134.98,3.3339]
[1726152682901,4.6804,135.05,134.97,3.747318]
[1726152683129,3.3325,135.04,134.98,3.3339]
[1726152683303,3.3325,135.04,134.98,7.05676206]
[1726152686017,4.6802,135.05,134.98,7.05676206]
[1726152686517,4.6802,135.05,134.99,3.3337]
[1726152687414,28.42,135.09,134.98,3.72286206]
[1726152687598,28.42,135.09,134.99,29.7471]
[1726152687799,3.3315,135.08,135.01,3.333]
[1726152688709,3.3317,135.07,134.99,29.7471]
[1726152689611,3.332,135.06,134.99,29.7471]
[1726152689903,28.42,135.09,134.99,29.7471]
[1726152690105,3.3319,135.07,135.01,3.3332]
[1726152690581,3.3319,135.07,134.99,29.7471]
[1726152690715,28.42,135.09,134.99,29.7471]
[1726152691110,3.332,135.06,134.99,29.7471]
[1726152691313,28.42,135.07,134.99,1.3271]
[1726152691626,28.42,135.05,134.95,3.3346]
[1726152691851,2.6893,135.04,134.94,6.37196751]
[1726152692006,28.42,135.03,134.94,6.37196751]
[1726152692319,28.42,135.01,134.9,28.42]
[1726152692605,28.42,135.01,134.9,2.7274]
[1726152692812,3.3341,134.98,134.91,3.3355]
[1726152693043,3.3341,134.98,134.91,6.9593996]
[1726152693203,28.42,135.01,134.91,6.9593996]
[1726152693398,28.42,135.01,134.91,3.6238996]
[1726152693604,7.78054848,135.04,134.9,6.0633]
[1726152693605,28.42,134.99,134.9,2.7274]
[1726152693803,28.42,134.99,134.9,6.36648406]
[1726152694013,3.3345,134.96,134.9,2.7274]
[1726152694216,3.3345,134.96,134.9,1.4119]
[1726152694809,1.2953,134.98,134.9,1.4119]
[1726152695801,3.3344,134.97,134.9,4.7478]
[1726152697312,3.3344,134.97,134.91,3.3356]
[1726152697513,3.3344,134.97,134.9,1.4119]
[1726152698423,4.6293,134.98,134.91,3.3355]
[1726152698806,1.2953,134.98,134.91,3.3355]
[1726152699811,3.3345,134.96,134.9,1.4119]
[1726152700014,1.2953,134.98,134.9,1.4119]
[1726152700237,3.3346,134.96,134.9,1.4119]
[1726152701211,3.3345,134.96,134.9,1.4119]
[1726152701512,2.6134,134.98,134.9,1.4119]
[1726152701709,3.3346,134.96,134.9,1.4119]
[1726152702210,3.3346,134.96,134.9,4.7476]
[1726152703633,2.6134,134.98,134.9,1.4119]
[1726152704034,3.3343,134.97,134.91,3.3355]
[1726152704317,2.6134,134.98,134.9,1.4119]
[1726152704529,3.3345,134.96,134.91,3.3356]
[1726152704707,2.6134,134.98,134.9,1.4119]
[1726152705124,3.3345,134.96,134.9,4.7478]
[1726152705424,2.6134,134.98,134.9,1.4119]
[1726152705619,3.3344,134.96,134.91,3.3355]
[1726152706209,3.3343,134.97,134.9,1.4119]
[1726152706816,3.3345,134.96,134.91,3.3355]
[1726152707509,3.3345,134.96,134.9,4.7477]
[1726152707917,2.6134,134.98,134.89,8.40909596]
[1726152708116,28.42,134.96,134.89,8.40909596]
[1726152708421,28.42,134.96,134.89,5.07309596]
[1726152709119,2.6134,134.98,134.89,5.07309596]
[1726152709722,3.3348,134.95,134.89,8.40909596]
[1726152710020,3.3348,134.95,134.89,5.07309596]
[1726152710830,3.3348,134.95,134.9,3.3359]
[1726152711022,3.3345,134.96,134.9,3.3359]
[1726152711214,20.4134,134.98,134.89,22.87309596]
[1726152711410,20.4134,134.98,134.92,3.3353]
[1726152711610,20.4134,134.98,134.9,1.3654]
[1726152712219,3.3345,134.96,134.9,1.3654]
[1726152712427,17.8,134.96,134.9,1.3654]
[1726152713038,3.3348,134.95,134.9,1.3654]
[1726152713535,3.3348,134.95,134.9,4.7013]
[1726152713735,21.1345,134.96,134.9,4.7013]
[1726152714137,17.8,134.96,134.9,1.3654]
[1726152714439,2.6134,134.98,134.9,19.1654]
[1726152714846,3.3342,134.97,134.9,19.1654]
[1726152715031,20.4134,134.98,134.9,1.3654]
[1726152715439,3.3347,134.95,134.9,1.3654]
[1726152717140,3.3345,134.96,134.9,4.7013]
[1726152718050,3.3345,134.96,134.91,3.3357]
[1726152718256,3.3343,134.97,134.91,3.3357]
[1726152718551,2.6134,134.98,134.9,19.1654]
[1726152718798,2.6134,134.98,134.92,3.3353]
[1726152718944,5.9474,134.98,134.92,3.3353]
[1726152719150,2.6134,134.98,134.92,3.3353]
[1726152719445,3.3342,134.97,134.91,3.3356]
[1726152719755,2.6134,134.98,134.9,19.1654]
[1726152719946,5.9476,134.98,134.92,3.3354]
[1726152720542,3.3338,134.99,134.93,3.335]
[1726152720749,17.8,135.0,134.9,19.1654]
[1726152721751,3.334,134.98,134.92,3.3354]
[1726152725151,3.3343,134.97,134.91,3.3356]
[1726152726552,17.8,134.98,134.9,1.3654]
[1726152726747,1.4153,134.97,134.9,1.3654]
[1726152726957,3.3348,134.95,134.9,1.3654]
[1726152727548,3.3351,134.94,134.89,11.00435044]
[1726152727856,17.8,134.96,134.89,5.07309596]
[1726152728251,21.1346,134.96,134.9,3.3359]
[1726152728650,17.8,134.96,134.89,5.07309596]
[1726152728855,3.3348,134.95,134.89,8.40919596]
[1726152729058,17.8,134.94,134.88,5.93125423]
[1726152729264,17.8,134.94,134.88,3.68645131]
[1726152729455,17.8,134.94,134.86,5.93125423]
[1726152730152,17.8,134.94,134.86,9.73037391]
[1726152730764,17.8,134.94,134.86,3.79911968]
[1726152730879,17.8,134.94,134.86,3.3368]
[1726152731062,17.8,134.94,134.87,3.63416619]
[1726152731661,3.3354,134.93,134.87,3.63416619]
[1726152732574,17.8,134.94,134.85,5.935057]
[1726152732575,17.8,134.9,134.85,5.935057]
[1726152732767,17.8,134.9,134.83,1.3932]
[1726152732768,17.8,134.9,134.83,7.328257]
[1726152732967,17.8,134.88,134.83,5.935057]
[1726152733271,17.8,134.88,134.82,3.3379]
[1726152733577,17.8,134.86,134.81,5.935057]
[1726152733870,17.8,134.86,134.76,17.8]
[1726152734071,17.8,134.86,134.77,5.935057]
[1726152734371,17.8,134.86,134.78,5.935057]
[1726152734865,17.8,134.86,134.79,5.935057]
[1726152735164,17.8,134.84,134.77,5.935057]
[1726152735352,17.8,134.82,134.75,5.935057]
[1726152735559,17.8,134.82,134.74,5.935057]
[1726152735560,3.3394,134.77,134.74,5.935057]
[1726152735770,17.8,134.8,134.68,17.8]
[1726152735970,1.2885,134.79,134.69,5.949255]
[1726152736270,1.2885,134.79,134.7,5.949255]
[1726152736455,1.2885,134.79,134.69,5.949255]
[1726152737260,1.2885,134.79,134.71,17.8]
[1726152737469,1.2885,134.79,134.72,1.3811]
[1726152737663,21.50862401,134.82,134.72,1.3811]
[1726152737961,17.8,134.82,134.73,19.1705]
[1726152738161,17.8,134.82,134.73,22.8271721]
[1726152739855,17.8,134.84,134.76,3.3392]
[1726152740061,21.55556993,134.84,134.76,3.3392]
[1726152740462,21.55556993,134.84,134.74,17.8]
[1726152740669,17.8,134.84,134.74,17.8]
[1726152741169,21.55519887,134.84,134.74,17.8]
[1726152741374,17.8,134.84,134.74,17.8]
[1726152741571,21.57783396,134.84,134.74,17.8]
[1726152741869,17.8,134.82,134.73,22.8271721]
[1726152742782,3.3383,134.81,134.75,3.3396]
[1726152743273,3.3383,134.81,134.73,22.8271721]
[1726152743274,17.8,134.83,134.73,22.8271721]
[1726152743474,17.8,134.83,134.76,3.3394]
[1726152744471,21.1377,134.83,134.76,3.3394]
[1726152744672,21.1377,134.83,134.73,22.8271721]
[1726152744673,21.1377,134.83,134.77,3.3391]
[1726152745082,21.1377,134.83,134.75,17.8]
[1726152745275,3.3381,134.82,134.76,3.3393]
[1726152746286,1.3656,134.86,134.76,17.8]
[1726152746869,17.8,134.89,134.78,17.8]
[1726152747080,17.8,134.89,134.79,2.634]
[1726152748181,17.8,134.89,134.82,3.3378]
[1726152748381,17.8,134.89,134.83,3.62998961]
[1726152749098,3.3364,134.88,134.83,3.62998961]
[1726152750091,21.1362,134.89,134.83,6.96758961]
[1726152750297,17.8,134.89,134.8,17.8]
[1726152750600,17.8,134.89,134.8,21.55333728]
[1726152750792,17.8,134.89,134.8,3.75333728]
[1726152750993,17.8,134.89,134.79,2.634]
[1726152751194,3.3369,134.87,134.81,3.3381]
[1726152751393,17.8,134.89,134.79,2.634]
[1726152751795,17.8,134.89,134.81,3.3381]
[1726152751992,17.8,134.89,134.82,3.6673094]
[1726152752601,17.8,134.89,134.8,17.8]
[1726152752989,17.8,134.89,134.8,21.48362255]
[1726152753795,3.3365,134.88,134.8,21.48362255]
[1726152754192,17.8,134.89,134.8,21.48362255]
[1726152754387,1.3188,134.9,134.82,17.8]
[1726152755093,1.3188,134.9,134.82,21.43281652]
[1726152755395,17.8,134.89,134.82,3.63281652]
[1726152755594,17.8,134.89,134.8,17.8]
[1726152755899,3.3369,134.87,134.81,3.338]